Cogmind - Beta 17 @@@ ROGUE MODE // 2026.07.16 @ 07:53:29 // Winter2019/RPGLIKE Player: Gallgagger Result: Self-destructed Performance ------------- Evolutions (1) 500 Regions Visited (6) 1200 Robots Destroyed (9) 45 Value Destroyed (175) 175 Prototype IDs (4) 80 Alien Tech Used (0) 0 Bonus (229) 229 TOTAL SCORE: 2229 Bonus ------- Aligned with FarCom 300 Friendly Fire -71 Cogmind --------- Core Integrity 56/1450 Matter 300/300 Energy 98/100 System Corruption 2% Temperature Cool (99) Movement Flying (42) Location -8/Mines Parts ------- > --- POWER (1) -------- (None) > --- PROPULSION (3) --- Experimental Flexi-carbon Leg Improved VTOL Module Improved VTOL Module > --- UTILITY (1) ------ (None) > --- WEAPON (3) ------- Salvaging Laser 12-ASH's Boomstick > --- INVENTORY (1) ---- (None) Peak State ------------ > --- POWER ------------ (None) > --- PROPULSION ------- Experimental Flexi-carbon Leg Improved VTOL Module Improved VTOL Module > --- UTILITY ---------- (None) > --- WEAPON ----------- Salvaging Laser 12-ASH's Boomstick > --- INVENTORY -------- (None) [Rating: 27] Favorites ----------- Power None Propulsion Improved VTOL Module Leg Experimental Flexi-carbon Leg Flight Unit Improved VTOL Module Utility None Weapon Salvaging Laser Energy Gun Salvaging Laser Ballistic Gun Assault Rifle Build | -11 -10 -10 -9 -9 -9 -8 ------- Run | Yrd Mat Min Mat Min Exi Min Slots Evolved 4 | . 4 . . . . . Power . | . . . . . . . Propulsion 2 | . 2 . . . . . Utility . | . . . . . . . Weapon 2 | . 2 . . . . . Parts Attached 9 | 1 3 . 3 . . 2 Power . | . . . . . . . Engine . | . . . . . . . Core . | . . . . . . . Reactor . | . . . . . . . Propulsion 4 | . . . 3 . . 1 Treads . | . . . . . . . Leg 1 | . . . . . . 1 Wheel . | . . . . . . . Hover . | . . . . . . . Flight 3 | . . . 3 . . . Utility . | . . . . . . . Device . | . . . . . . . Storage . | . . . . . . . Processor . | . . . . . . . Hackware . | . . . . . . . Protection . | . . . . . . . Artifact . | . . . . . . . Weapon 5 | 1 3 . . . . 1 Energy Gun 3 | . 3 . . . . . Energy Cannon . | . . . . . . . Ballistic Gun 2 | 1 . . . . . 1 Ballistic Cannon . | . . . . . . . Launcher . | . . . . . . . Special Weapon . | . . . . . . . Impact Weapon . | . . . . . . . Slashing Weapon . | . . . . . . . Piercing Weapon . | . . . . . . . Special Melee Weapon . | . . . . . . . Unidentified Prototypes 4 | . . . 1 . 1 2 Parts Lost 2 | . . . . . . 2 Power . | . . . . . . . Propulsion . | . . . . . . . Utility . | . . . . . . . Weapon 2 | . . . . . . 2 Highest Loss Streak 2 | . . . . . . 2 To Critical Strikes . | . . . . . . . Average Backups . | . . . . . . . Power . | . . . . . . . Propulsion . | . . . . . . . Utility . | . . . . . . . Weapon . | . . . . . . . Tool/Special . | . . . . . . . Unused Backups 1 | . . . . . 1 . Power . | . . . . . . . Propulsion . | . . . . . . . Utility . | . . . . . . . Weapon . | . . . . . . . Tool/Special 1 | . . . . . 1 . Average Slot Usage (%) 59 | . 28 37 49 75 75 68 Flight 24 | . . . 12 37 37 36 Energy Gun 31 | . 11 37 37 37 37 30 Ballistic Gun 2 | . 16 . . . . . Peak Build Rating 27 | 1 3 3 15 15 16 27 Average Rating 11 | . 1 3 9 15 15 15 On Entrance 7 | . 1 3 3 15 15 15 Avg Prop Armor Cover (%) 2 | . . . . . 2 2 Naked Turns . | . . . . . . . Heaviest Build 5 | 2 3 3 3 3 3 5 Greatest Support 15 | 3 3 3 15 15 15 10 Greatest Overweight (x) . | . . . . . . . Average Overweight (x) . | . . . . . . . Largest Inventory Capacity 1 | . . . . . 1 1 Average Capacity . | . . . . . . 1 Most Carried 1 | . . . . . 1 . Average Carried . | . . . . . . . Final Capacity 1 | . . . . . 1 1 Final Carried . | . . . . . . . Class Distribution -------------------- 69% | Sprinter 22% | Gunner 7% | Mutant Dominant Class ---------------- Mutant | -10/Materials Gunner | -10/Mines Gunner | -9/Materials Sprinter | -9/Mines Sprinter | -9/Exiles Sprinter | -8/Mines Resources | -11 -10 -10 -9 -9 -9 -8 ----------- Run | Yrd Mat Min Mat Min Exi Min Matter Collected 347 | . 219 31 . . . 97 Remotely . | . . . . . . . Salvage Created 225 | . 134 . . . . 91 Parts 25 | . 13 . . . . 12 Haulers Intercepted . | . . . . . . . Recyclers Shooed . | . . . . . . . Parts Field Recycled . | . . . . . . . Retrieved Matter . | . . . . . . . Parts Self-Destructed . | . . . . . . . Prevented . | . . . . . . . Parts Restored . | . . . . . . . Kills | -11 -10 -10 -9 -9 -9 -8 ------- Run | Yrd Mat Min Mat Min Exi Min Combat Hostiles Destroyed 8 | . 4 . . . . 4 Guns 8 | . 4 . . . . 4 Classes Destroyed 3 | . 1 . . . . 2 Tunneler 1 | . . . . . . 1 Swarmer 4 | . . . . . . 4 Federalist 4 | . 4 . . . . . Best Kill Streak 5 | . 4 . . . . 5 Combat Bots Only 4 | . 4 . . . . 4 Max Kills in Single Turn 2 | . 1 . . . . 2 Gunslinging . | . . . . . . . Exploded . | . . . . . . . Melee . | . . . . . . . Uniques/NPCs Destroyed 1 | . . . . . . 1 12-ASH (-8/Mines) Combat | -11 -10 -10 -9 -9 -9 -8 -------- Run | Yrd Mat Min Mat Min Exi Min Hostile Shots Fired 109 | . 40 2 . . . 67 Missed 30 | . 9 . . . . 21 Hits 79 | . 31 2 . . . 46 Projectile 79 | . 31 2 . . . 46 AOE 2 | . . 2 . . . . Critical Strikes 2 | . . . . . . 2 Damage Taken 1614 | . 281 73 . . 30 1230 Core 1415 | . 247 62 . . 24 1082 Absorbed by Shields . | . . . . . . . Redirected to Core 723 | . 122 38 . . 24 539 Core Remaining (%) 74 | 100 . 48 . . . . Volleys Fired 71 | . 28 . . . . 43 Largest 3 | . 1 . . . . 3 Hottest 90 | . 30 . . . . 90 Shots Fired 112 | . 28 . . . . 84 Gun 112 | . 28 . . . . 84 Cannon . | . . . . . . . Launcher . | . . . . . . . Special . | . . . . . . . Kinetic 19 | . 19 . . . . . Thermal 93 | . 9 . . . . 84 Explosive . | . . . . . . . Electromagnetic . | . . . . . . . Robot Hit Streak 7 | . 7 . . . . 7 Robot Miss Streak 5 | . 2 . . . . 5 Penetration Max . | . . . . . . . Secondary Targets . | . . . . . . . Shots Hit Robots 64 | . 21 . . . . 43 Core Hits 24 | . 11 . . . . 13 Critical Kills . | . . . . . . . Critical Parts Destroyed . | . . . . . . . Critical Strikes . | . . . . . . . Melee Attacks . | . . . . . . . Impact . | . . . . . . . Slashing . | . . . . . . . Piercing . | . . . . . . . Sneak Attacks . | . . . . . . . Combat Hostiles . | . . . . . . . Follow-up Attacks . | . . . . . . . Damage Inflicted 671 | . 250 . . . 30 391 Guns 641 | . 250 . . . . 391 Cannons . | . . . . . . . Explosions . | . . . . . . . Melee . | . . . . . . . Ramming 30 | . . . . . 30 . Kinetic 187 | . 187 . . . . . Thermal 454 | . 63 . . . . 391 Explosive . | . . . . . . . Electromagnetic . | . . . . . . . Impact . | . . . . . . . Slashing . | . . . . . . . Piercing . | . . . . . . . Highest Corruption 2 | . . . . . 2 2 Average Corruption 2 | . . . . . 2 2 Corruption Purged . | . . . . . . . Corruption Blocked . | . . . . . . . Effects 3 | . . . . . . 3 Heat Flow Errors 1 | . . . . . . 1 Energy Discharges 1 | . . . . . . 1 Weapon Failures 1 | . . . . . . 1 Overload Shots . | . . . . . . . Overflow Damage . | . . . . . . . Projectiles . | . . . . . . . Explosions . | . . . . . . . Melee . | . . . . . . . Knockbacks . | . . . . . . . Impact . | . . . . . . . Kinetic . | . . . . . . . Secondary . | . . . . . . . Self-Inflicted Damage 30 | . . . . . 30 . Shots . | . . . . . . . Rammed . | . . . . . . . Targets Rammed . | . . . . . . . Kicked . | . . . . . . . Crushed . | . . . . . . . Highest Temperature 381 | . 22 . . . . 381 Average Temperature 143 | . 13 . . . . 186 Received Heat Transfer 186 | . 186 . . . . . Siege Activations . | . . . . . . . Martial Activations . | . . . . . . . Shielding Activations . | . . . . . . . Robots Disrupted . | . . . . . . . Combat Hostiles . | . . . . . . . Robots Corrupted . | . . . . . . . Combat Hostiles . | . . . . . . . Parts Fried . | . . . . . . . Impact Corruptions . | . . . . . . . Robots Melted . | . . . . . . . Combat Hostiles . | . . . . . . . Parts Melted 3 | . 2 . . . . 1 Heat Transferred 629 | . 175 . . . . 454 Parts Sabotaged . | . . . . . . . Parts Stolen . | . . . . . . . Parts Stripped . | . . . . . . . Power Chain Reactions . | . . . . . . . Alert | -11 -10 -10 -9 -9 -9 -8 ------- Run | Yrd Mat Min Mat Min Exi Min Maximum Alert Level . | . . . . . . . Low Security (%) 100 | 100 100 100 100 100 . 100 Level 1 . | . . . . . . . Level 2 . | . . . . . . . Level 3 . | . . . . . . . Level 4 . | . . . . . . . Level 5 . | . . . . . . . High Security . | . . . . . . . Max Security . | . . . . . . . Peak Influence 90 | . . . . . . 90 Initial . | . . . . . . . Average 14 | . . . . . . 39 Influence Increases 100 | . . . . . . 100 Destroy 0b10 Robot/C 80 | . . . . . . 80 Destroy 0b10 Robot/NC 5 | . . . . . . 5 Destroy Leader 10 | . . . . . . 10 Allied During Kill 5 | . . . . . . 5 Influence Decreases 70 | . . . . . . 70 Time Decay 50 | . . . . . . 50 Lost Part 20 | . . . . . . 20 Squads Dispatched . | . . . . . . . Investigation . | . . . . . . . Extermination . | . . . . . . . Reinforcement . | . . . . . . . Assault . | . . . . . . . Garrison . | . . . . . . . Intercept . | . . . . . . . Searches Triggered . | . . . . . . . Construction Impeded . | . . . . . . . Haulers Reinforced . | . . . . . . . Active Scanning Responses . | . . . . . . . Cargo Convoy Interrupts . | . . . . . . . Stealth | -11 -10 -10 -9 -9 -9 -8 --------- Run | Yrd Mat Min Mat Min Exi Min Distress Signals . | . . . . . . . Communications Jammed . | . . . . . . . Distress Signals . | . . . . . . . Times Spotted 10 | . 4 1 . . . 5 Peak Tracking Total 9 | . 4 1 . . 9 5 Tactical Retreats . | . . . . . . . Traps | -11 -10 -10 -9 -9 -9 -8 ------- Run | Yrd Mat Min Mat Min Exi Min Traps Triggered . | . . . . . . . Indirectly . | . . . . . . . Trap Hack Attempts . | . . . . . . . Triggered . | . . . . . . . Disarmed . | . . . . . . . Reprogrammed . | . . . . . . . Reused . | . . . . . . . Traps Extracted . | . . . . . . . Installed . | . . . . . . . Triggered . | . . . . . . . Machines | -11 -10 -10 -9 -9 -9 -8 ---------- Run | Yrd Mat Min Mat Min Exi Min Machines Disabled 1 | . . . . . 1 . Max in Single Turn 1 | . . . . . 1 . Machines Repaired . | . . . . . . . Machines Dismantled . | . . . . . . . Machines Sabotaged . | . . . . . . . Overloaded Fab Kills . | . . . . . . . Hacking | -11 -10 -10 -9 -9 -9 -8 --------- Run | Yrd Mat Min Mat Min Exi Min Machines Accessed . | . . . . . . . Terminals . | . . . . . . . Fabricators . | . . . . . . . Repair Stations . | . . . . . . . Recycling Units . | . . . . . . . Scanalyzers . | . . . . . . . Garrison Access . | . . . . . . . Total Hacks . | . . . . . . . Successful . | . . . . . . . Failed . | . . . . . . . Catastrophic . | . . . . . . . Database Lockouts . | . . . . . . . Manual 1 | . . . . . 1 . Terminals . | . . . . . . . Fabricators . | . . . . . . . Repair Stations . | . . . . . . . Recycling Units . | . . . . . . . Scanalyzers . | . . . . . . . Garrison Access . | . . . . . . . Terminal Hacks . | . . . . . . . Fabricator Hacks . | . . . . . . . Repair Station Hacks . | . . . . . . . Recycling Unit Hacks . | . . . . . . . Scanalyzer . | . . . . . . . Garrison Access Hacks . | . . . . . . . Unauthorized Hacks . | . . . . . . . Terminals . | . . . . . . . Fabricators . | . . . . . . . Repair Stations . | . . . . . . . Recycling Units . | . . . . . . . Scanalyzers . | . . . . . . . Garrison Access . | . . . . . . . Data Cores Recovered . | . . . . . . . Used . | . . . . . . . Hacking Detections . | . . . . . . . Full Trace Events . | . . . . . . . Feedback Events . | . . . . . . . Feedback Blocked . | . . . . . . . Robot Schematics Acquired . | . . . . . . . Robots Built . | . . . . . . . Authchips . | . . . . . . . Time . | . . . . . . . Total Robot Build Rating . | . . . . . . . Part Schematics Acquired . | . . . . . . . Parts Built . | . . . . . . . Authchips . | . . . . . . . Time . | . . . . . . . Total Part Build Rating . | . . . . . . . Part Studies Acquired . | . . . . . . . Parts Repaired . | . . . . . . . Time . | . . . . . . . Parts Recycled . | . . . . . . . Recycled Matter . | . . . . . . . Retrieved Matter . | . . . . . . . Retrieved Components . | . . . . . . . Parts Scanalyzed . | . . . . . . . Part Schematics Acquired . | . . . . . . . Parts Damaged . | . . . . . . . Bothacking | -11 -10 -10 -9 -9 -9 -8 ------------ Run | Yrd Mat Min Mat Min Exi Min Used RIF Installer . | . . . . . . . Robots Hacked . | . . . . . . . Non-combat . | . . . . . . . Combat . | . . . . . . . Robot Hacks Applied . | . . . . . . . Relay Couplers Released . | . . . . . . . Fabnet Peak Effective % . | . . . . . . . Robots Rewired . | . . . . . . . Allies Hacked . | . . . . . . . Hacks Repelled . | . . . . . . . Allies | -11 -10 -10 -9 -9 -9 -8 -------- Run | Yrd Mat Min Mat Min Exi Min Total Allies 3 | . . . . 3 . . Largest Group 3 | . . . . 3 1 1 Highest-Rated Group 40 | . . . . 40 16 16 Highest-Rated Ally 16 | . . . . 16 16 16 Total Orders 4 | . . . . . 4 . STAY 2 | . . . . . 2 . FOLLOW 2 | . . . . . 2 . Ally Attacks 29 | . . . . . . 29 Total Damage 309 | . . . . . . 309 Kills 1 | . . . . . . 1 Allies Corrupted . | . . . . . . . Allies Melted . | . . . . . . . Intel | -11 -10 -10 -9 -9 -9 -8 ------- Run | Yrd Mat Min Mat Min Exi Min Active Infowar (turns) . | . . . . . . . Robot Analysis Total . | . . . . . . . Derelict Logs Recovered 2 | . . 1 . 1 . . Drone Launches . | . . . . . . . Drone Recoveries . | . . . . . . . Exploration | -11 -10 -10 -9 -9 -9 -8 ------------- Run | Yrd Mat Min Mat Min Exi Min Turns Passed 605 | 13 78 94 20 63 183 154 Spaces Moved 1001 | 23 38 185 43 216 307 189 Core 259 | 23 38 185 13 . . . Treads . | . . . . . . . Legs . | . . . . . . . Wheels . | . . . . . . . Hover . | . . . . . . . Flight 742 | . . . 30 216 307 189 Fastest Speed 29 | 50 50 50 29 29 29 32 Average Speed 35 | 50 50 50 35 29 29 33 Slowest Speed 50 | 50 50 50 50 29 32 42 Overloaded Moves . | . . . . . . . Propulsion Burnouts . | . . . . . . . Robots Hopped 3 | . . . . 1 . 2 Potential Cave-ins . | . . . . . . . Cave-ins Triggered . | . . . . . . . Time Travels 1 | . . . . . 1 . Exploration Rate (%) 31 | 3 8 52 8 58 62 31 Regions Visited 6 Branch Regions 4 Pre-discovered Areas 1 | . . 1 . . . . Known Exits Taken . | . . . . . . . Unknown Exits Taken 6 | 1 1 1 1 1 1 . Scrap Searched 3 | . . 2 . . . 1 Spaces Dug . | . . . . . . . Terrain Destroyed . | . . . . . . . Melee . | . . . . . . . Projectile . | . . . . . . . AOE . | . . . . . . . Terrain Rammed 1 | . . . . . 1 . Walls Destroyed . | . . . . . . . Machines Disabled 1 | . . . . . 1 . Actions | -11 -10 -10 -9 -9 -9 -8 --------- Run | Yrd Mat Min Mat Min Exi Min Total 1176 | 23 70 185 45 214 399 240 Wait 101 | . 2 1 . . 91 7 Move 989 | 22 37 184 42 213 306 185 Hop 3 | . . . . 1 . 2 Pick Up 1 | . . . . . 1 . Fast Attach 7 | 1 2 . 3 . . 1 Attach . | . . . . . . . Detach . | . . . . . . . Swap 2 | . 1 . . . . 1 Drop . | . . . . . . . Fire 71 | . 28 . . . . 43 Melee . | . . . . . . . Ram 1 | . . . . . 1 . Kick . | . . . . . . . Crush . | . . . . . . . Escape Stasis . | . . . . . . . Rewire . | . . . . . . . Trap . | . . . . . . . Miscellaneous 1 | . . . . . . 1 Route ------- -11/Scrapyard -10/Materials -10/Mines -9/Materials -9/Mines (discovered 2 exits: [*Mat] / *Exi) -9/Exiles -8/Mines History --------- Turn | Location | Event 3 | -11/Scrapyard | Discovered new exit (range 16) 14 | -11/Scrapyard | Entered Materials 15 | -10/Materials | Met a group of wandering Federalists 30 | -10/Materials | Angered wandering Federalists 77 | -10/Materials | Upgraded with Weapon slot (x1) 80 | -10/Materials | Upgraded with Propulsion slot (x2) 80 | -10/Materials | Upgraded with Weapon slot (x1) 84 | -10/Materials | Discovered new exit (range 15) 92 | -10/Materials | Entered Mines 171 | -10/Mines | Assembled infested the area 183 | -10/Mines | Discovered new exit (range 6) 186 | -10/Mines | Core integrity fell below 50% 186 | -10/Mines | Entered Materials 187 | -9/Materials | Core integrity fell below 50% 188 | -9/Materials | Reached level 2 203 | -9/Materials | Discovered new exit (range 10) 206 | -9/Materials | Entered Mines 217 | -9/Mines | Learned Materials stockpile data 220 | -9/Mines | Discovered new exit (range 10) 225 | -9/Mines | Met a Derelict bent on vengeance 255 | -9/Mines | Assisted by bots powering up and referring to "LRC-V3" 267 | -9/Mines | Deemed a non-threat by the Exiles lab entrance 268 | -9/Mines | Discovered new exit (range 5) 269 | -9/Mines | Entered Exiles 269 | -9/Exiles | Accompanied by 1 ally 277 | -9/Exiles | Met 8R-AWN 281 | -9/Exiles | Met EX-HEX 289 | -9/Exiles | Met EX-BIN 293 | -9/Exiles | Aligned with FarCom system 294 | -9/Exiles | Given EX-Vault access code 301 | -9/Exiles | Opened EX-Vault 301 | -9/Exiles | Found Prototype Device 308 | -9/Exiles | Warned to stay clear of 0b10 Research branches 317 | -9/Exiles | Met EX-DEC 380 | -9/Exiles | Discovered new exit (range 11) 437 | -9/Exiles | Attacked by the Exiles 449 | -9/Exiles | Identified Chronowheel 449 | -9/Exiles | Activated Chronowheel 449 | -9/Exiles | Spacetime reconverged on an earlier point 452 | -9/Exiles | Entered Mines 452 | -8/Mines | Accompanied by 1 ally 454 | -8/Mines | Reached level 3 484 | -8/Mines | Build established: Sprinter 520 | -8/Mines | 12-ASH came to Exiles' defense 556 | -8/Mines | Core integrity fell below 20% 594 | -8/Mines | Allies destroyed 12-ASH 595 | -8/Mines | Found Prototype Ballistic Gun 595 | -8/Mines | Identified 12-ASH's Boomstick 606 | -8/Mines | Self-destructed Last Messages --------------- 00562_ System corrupted: Salvaging Laser failed to cycle. 00562_ Salvaging Laser destroyed. 00576_ 12-ASH suffers critical hit (Burn). 00580_ Destroyed Prototype Device. 00582_ Destroyed 0b10 Decoder Chip [Skirmisher]. 00588_ U-05 Engineer builds a Wall. 00594_ 12-ASH destroyed. 00594_ Acquired 21 matter. 00595_ Acquired Prototype Ballistic Gun. 00595_ Identified 12-ASH's Boomstick. 00597_ Acquired Prototype Leg. 00597_ Identified Exp. Flexi-carbon Leg. 00598_ U-05 Engineer builds a Wall. 00603_ Searching scrap... 00603_ Found Katana. 00603_ Found Hrd. Medium Armor Plating. 00603_ Found Mining Claw. 00603_ Found 37 Matter. 00604_ Acquired 20 matter. 00605_ System corrupted: Heat flow error (+162). Map ----- +----------------------------------------------------+ | ?????????????????????????# ???????????? | | ????????????????????????# ?????????????? | | ??????????????????????## ??????????????? | | ??????????????????????# ???????????????? | | ?????????####?????????# #???????###??????? | | ?????????# #???????## #??????## ##?????? | | ??????????# #?????## #??????## #?????? | | ???????????# ##??## ######## #????### | | ????????????# #### ##???## | | ????????????# ##????# | | ????????????# ###### #????## | | ????????????## #??## #???## "" | | ?????????????### ## ##??# #???# "" | | ?????????????? ###### #???# # #?### "" | | ??????????????#;##?## ##???# ## # ## | | ?????????????## ### ##????##?# "?# # | | ?????????????# #???????## ### ## | | ?????????????# ##??????## ## ##? | | ?????????????# ########## #?? | | ????????????## ##"# ## #?? | | ???????????## #??" #"# ##?? | | ??????????## r##?# #" "#### ##??? | | ?????????## [=#?# ## ##??## ##???? | | ?????????# =%### #! #???# #????? | | ?????????# [*==g #%= ###### #????? | | ?????????## # t@ ## ##????? | | ??????????# ## ####### ####?????? | | ??????????# ?#! #????# ###### #????????? | | ??????????#??#/%#????# #???????????????? | | ?????????????#/ #????## ##???????????????? | | ?????????????# #?????# #????????????????? | | ????????????? #?????# #????????????????? | | ????????????#####?????# ###????????????????? | | ??????????????????????# #??????????????????? | | ??????????????????????# #??????????????????? | | ??????????????????????# ???????????????????? | | ??????????????????????# ???????????????????? | | ??????????????????????# ???????????????????? | | ??????????????????????# ???????????????????? | | ??????????????????????? ???????????????????? | | ??????????????????????? ???????????????????? | | ???????????????????????????????????????????? | | ???????????????????????????????????????????? | | ???????????????????????????????????????????? | | ???????????????????????????????????????????? | | ???????????????????????????????????????????? | | ???????????????????????????????????????????? | | ???????????????????????????????????????????? | | ???????????????????????????????????????????? | | ???????????????????????????????????????????? | +----------------------------------------------------+ Best States ------------- Heat Dissipation 73 Energy Generation 10 Energy Capacity 100 Matter Stores 280 Matter Capacity 300 Sight Range 16 Terrain Scan Density 10 Evasion (%) 64 Item Schematics ----------------- None Robot Schematics ------------------ None Fabricated ------------ Nothing Repaired ---------- Nothing Studied --------- None Alien Tech Used ----------------- None Achievements -------------- None Challenges ------------ None RPGLIKE | -11 -10 -10 -9 -9 -9 -8 --------- Run | Yrd Mat Min Mat Min Exi Min Levels Raised 2 | . . . 1 . . 1 XP Earned 6800 | 3000 . 500 1500 500 350 950 XP Spent 5895 | . 2600 . . . 250 3045 Upgrades 31 | . 4 . . . 1 26 Propulsion Slot 2 | . 2 . . . . . Weapon Slot 2 | . 2 . . . . . Core Integrity 17 | . . . . . . 17 Heat Dissipation 8 | . . . . . . 8 Energy Generation 1 | . . . . . . 1 Inventory Capacity 1 | . . . . . 1 . Protomatter Created 36 | . 29 . . . . 7 Integrity Restored 21 | . . . . . . 21 Core 21 | . . . . . . 21 Protomatter Decayed 29 | . 29 . . . . . Game ------ Seed ConcussiveLobotomyWell Manual? 1 Play Time 00:06:43 Cumulative 667.2 hours Start 2026.07.16 @ 07:48:21 End 2026.07.16 @ 07:53:29 Sessions 1 Manual Loads 0 Difficulty Rogue Special Mode Winter2019/RPGLIKE Game No. 311 Rogue 157 Adventurer 154 Explorer 0 Win Type - Total 22 Types 4/5/4/3/2/1/0/1/1/1 Lore% 95 Gallery% 88 Achievement% 68 Wizard Run 0 Options --------- Layout 0 ASCII 0 Keyboard 0 Movement Numpad Keybinds 0 Fullscreen 2 Font 18/SmallcapsGlow Map View 76x50 Zoom Use 0% Tactical HUD 1 Map Filters NONE Filters NONE Steam 1 RUN: f58d66cc-8e8b-448c-8471-1f15d201d528